Cogmind - Beta 17 @@@ ROGUE MODE // 2026.06.24 @ 16:35:07 Player: beans Result: Destroyed by G-73 Enforcer with Phase Gun Performance ------------- Evolutions (6) 3000 Regions Visited (16) 3200 Robots Destroyed (255) 1275 Value Destroyed (10960) 10960 Prototype IDs (11) 220 Alien Tech Used (0) 0 Bonus (4423) 4423 TOTAL SCORE: 23078 Bonus ------- High Alert Combat Kills 1805 Follower Combat Kills 1440 Entered Garrisons 200 Entered DSFs 500 Met R17 at Cetus 500 Friendly Fire -22 Cogmind --------- Core Integrity 0/1150 Matter 285/300 Energy 70/100 System Corruption 12% Temperature Cool (9) Movement Treading (180) Location -4/Armory Parts ------- > --- POWER (2) -------- (None) > --- PROPULSION (4) --- Heavy Siege Treads > --- UTILITY (7) ------ Improved Weapon Cycler Improved Weapon Cycler > --- WEAPON (6) ------- (None) > --- INVENTORY (5) ---- Advanced Plasma Rifle Quantum Rifle Peak State ------------ > --- POWER ------------ Quantum Reactor Quantum Reactor > --- PROPULSION ------- Centrium Heavy Treads Centrium Heavy Treads > --- UTILITY ---------- Advanced Heat Sink Advanced Heat Sink Medium Storage Unit Quantum Capacitor Improved Heavy Armor Plating > --- WEAPON ----------- Wave Gun Wave Gun Advanced Plasma Rifle Railgun Railgun Advanced KE Penetrator > --- INVENTORY -------- Reinforced Fission Core High-capacity Matter Pod Centrium Medium Armor Plating KE Penetrator Long-range Missile Launcher Advanced Remote Datajack Plasma Cutter [Rating: 134] Favorites ----------- Power Quantum Reactor Engine Light Angular Momentum Engine Power Core Light Fission Core Reactor Quantum Reactor Propulsion Flexi-carbon Leg Treads Light Treads Leg Flexi-carbon Leg Flight Unit Cesium-ion Thruster Utility Advanced Heat Sink Device Advanced Heat Sink Storage Medium Storage Unit Processor Advanced Targeting Computer Protection Improved Propulsion Shielding Weapon Phase Cannon Energy Gun Wave Gun Energy Cannon Phase Cannon Ballistic Gun Heavy Assault Rifle Ballistic Cannon Light Cannon Launcher Long-range Missile Launcher Special Weapon Plasma Cutter Build | -11 -10 -9 -9 -8 -7 -7 -6 -6 -5 -5 -5 -5 -5 -5 -4 -4 ------- Run | Yrd Mat Mat Sto Mat Fac DSF Fac Gar Fac Was Fac Ext Cet Arc Fac Arm Slots Evolved 12 | . . 2 . 2 2 . 2 . 2 . . . . . 2 . Power 1 | . . . . 1 . . . . . . . . . . . . Propulsion 2 | . . . . 1 . . . . . . . . . . 1 . Utility 5 | . . . . . 1 . 1 . 2 . . . . . 1 . Weapon 4 | . . 2 . . 1 . 1 . . . . . . . . . Parts Attached 174 | 4 3 4 5 6 1 5 11 45 5 12 1 15 12 3 41 1 Power 25 | 1 . . 2 1 . . 2 7 . 3 1 1 2 . 5 . Engine 11 | 1 . . 2 1 . . 2 4 . . . . . . 1 . Core 4 | . . . . . . . . 3 . . . . . . 1 . Reactor 10 | . . . . . . . . . . 3 1 1 2 . 3 . Propulsion 30 | 2 . . . 2 . 3 2 11 . 1 . 1 2 . 6 . Treads 18 | 2 . . . 2 . 3 2 2 . . . . 1 . 6 . Leg 11 | . . . . . . . . 8 . 1 . 1 1 . . . Wheel . | . . . . . . . . . . . . . . . . . Hover . | . . . . . . . . . . . . . . . . . Flight 1 | . . . . . . . . 1 . . . . . . . . Utility 43 | . 2 . . 1 . 1 4 8 2 4 . 2 6 1 12 . Device 30 | . . . . . . 1 1 7 2 3 . . 5 1 10 . Storage 5 | . 1 . . . . . 2 . . . . 1 . . 1 . Processor 1 | . . . . . . . . 1 . . . . . . . . Hackware . | . . . . . . . . . . . . . . . . . Protection 7 | . 1 . . 1 . . 1 . . 1 . 1 1 . 1 . Artifact . | . . . . . . . . . . . . . . . . . Weapon 76 | 1 1 4 3 2 1 1 3 19 3 4 . 11 2 2 18 1 Energy Gun 27 | . . . . . . . . 4 3 3 . . . . 16 1 Energy Cannon 6 | . . . . . . . . 4 . . . . . . 2 . Ballistic Gun 34 | 1 . 2 3 1 1 1 1 10 . . . 11 1 2 . . Ballistic Cannon 5 | . . 2 . 1 . . 2 . . . . . . . . . Launcher 2 | . 1 . . . . . . . . . . . 1 . . . Special Weapon 2 | . . . . . . . . 1 . 1 . . . . . . Impact Weapon . | . . . . . . . . . . . . . . . . . Slashing Weapon . | . . . . . . . . . . . . . . . . . Piercing Weapon . | . . . . . . . . . . . . . . . . . Special Melee Weapon . | . . . . . . . . . . . . . . . . . Unidentified Prototypes 9 | . . . 3 . . . . . . . . 2 3 . 1 . Corrupted Parts 3 | . . . . . . . . 1 . . . 2 . . . . System Corruption 10 | . . . . . . . . 1 . . . 9 . . . . Parts Lost 107 | . . . 1 3 . 2 9 35 . . 1 2 5 1 47 1 Power 16 | . . . 1 . . . 1 6 . . 1 . . . 7 . Propulsion 17 | . . . . 1 . 1 2 6 . . . . 1 . 6 . Utility 25 | . . . . 1 . . 1 6 . . . 1 2 . 13 1 Weapon 49 | . . . . 1 . 1 5 17 . . . 1 2 1 21 . Highest Loss Streak 14 | . . . 1 2 . 1 7 9 . . 1 2 2 1 14 1 To Critical Strikes 1 | . . . . . . . . . . . . . 1 . . . Average Backups 8 | . 2 8 9 8 8 9 8 7 8 9 9 9 9 9 6 2 Power . | . . . 1 . . . . 1 . . 2 1 . . . . Propulsion . | . . 2 1 . . 1 1 . 2 . . . . 1 . 1 Utility 1 | . . 1 1 1 2 2 2 1 2 2 1 . . 1 . . Weapon 4 | . 1 5 5 6 5 4 2 2 3 4 4 4 6 5 3 1 Tool/Special . | . . . . . . . . . . . . . . . . . Unused Backups 8 | . . . 3 . . . . . 1 . . 3 . . 1 . Power 2 | . . . 2 . . . . . . . . . . . . . Propulsion 1 | . . . 1 . . . . . . . . . . . . . Utility 2 | . . . . . . . . . . . . 2 . . . . Weapon 3 | . . . . . . . . . 1 . . 1 . . 1 . Tool/Special . | . . . . . . . . . . . . . . . . . Average Slot Usage (%) 83 | . 71 99 99 97 92 93 90 77 90 84 81 83 86 84 71 14 Engine 4 | . 14 11 10 17 15 15 11 6 . . . . . . . . Core 1 | . . . . . . . . 3 11 1 . . . . 1 . Reactor 5 | . . . . . . . . . . 9 10 11 10 11 7 . Treads 7 | . 28 22 22 25 23 21 19 4 . . . . 4 5 9 . Leg 6 | . . . . . . . . 10 17 13 11 10 . . . . Device 15 | . . . . . . 3 7 13 22 22 23 23 18 29 21 13 Storage 6 | . 4 11 11 9 7 7 11 9 5 5 5 5 5 5 4 . Protection 3 | . . 11 10 9 7 7 3 . . 3 5 4 8 . 1 . Energy Gun 5 | . . . . . . . . 2 8 6 . . 10 13 16 . Energy Cannon 8 | . . . . . . . . 5 22 18 23 17 8 17 4 . Ballistic Gun 10 | . 14 22 21 18 23 22 23 18 . . . 7 13 . 2 . Ballistic Cannon 3 | . . 20 21 17 15 15 12 . . . . . . . . . Peak Build Rating 134 | 4 9 13 17 21 23 39 50 73 83 99 84 103 110 102 134 27 Average Rating 68 | 3 5 12 15 20 21 32 44 47 74 80 83 87 101 97 108 20 On Entrance 47 | . 4 9 13 17 21 21 39 49 63 83 84 84 103 101 96 20 Avg Prop Armor Cover (%) . | . . . . . . . . . . . . . . . . . Naked Turns . | . . . . . . . . . . . . . . . . . Heaviest Build 110 | 6 26 34 37 45 48 50 76 70 71 94 85 93 108 94 110 3 Greatest Support 160 | 40 40 40 40 60 60 90 90 90 60 80 80 83 83 80 160 70 Greatest Overweight (x) 4 | . . . . 1 . 2 1 4 1 1 1 4 3 1 . . Average Overweight (x) . | . . . . . . . . . . . . . 1 1 . . Largest Inventory Capacity 10 | 5 10 10 10 10 10 10 10 10 10 10 10 10 10 10 10 5 Average Capacity 9 | 5 6 10 10 10 10 10 10 10 10 10 10 10 10 10 7 5 Most Carried 10 | 3 10 9 10 10 8 10 10 10 10 10 9 10 10 10 10 4 Average Carried 8 | . 2 8 9 8 8 9 8 7 8 9 9 9 9 9 6 3 Final Capacity 10 | 5 10 10 10 10 10 10 10 10 10 10 10 10 10 10 5 5 Final Carried 10 | . 10 9 10 9 8 10 9 8 9 9 9 10 10 10 4 2 Class Distribution -------------------- 46% | Scavenger-Executioner 23% | Scavenger-Tank 12% | Tank 11% | Scavenger-Gunner Dominant Class ---------------- Mutant | -10/Materials Tank | -9/Materials Tank | -9/Storage Tank | -8/Materials Scavenger-Tank | -7/Factory Scavenger-Tank | -7/DSF Scavenger-Executioner | -6/Factory Scavenger-Executioner | -6/Garrison Scavenger-Executioner | -5/Factory Scavenger-Tank | -5/Waste Scavenger-Tank | -5/Factory Scavenger-Tank | -5/Extension Scavenger-Executioner | -5/Cetus Scavenger-Executioner | -5/Archives Scavenger-Executioner | -4/Factory Mutant | -4/Armory Resources | -11 -10 -9 -9 -8 -7 -7 -6 -6 -5 -5 -5 -5 -5 -5 -4 -4 ----------- Run | Yrd Mat Mat Sto Mat Fac DSF Fac Gar Fac Was Fac Ext Cet Arc Fac Arm Matter Collected 8705 | 213 37 204 995 403 57 485 1579 1795 86 220 . 469 858 37 1267 . Remotely 719 | . . . . . . . 529 190 . . . . . . . . Salvage Created 13250 | . 73 195 1405 397 . 405 1388 2368 431 1011 . 1116 1110 375 2976 . Parts 526 | . 10 11 72 23 . 19 55 92 15 16 . 37 47 12 117 . Haulers Intercepted 11 | . 1 . 5 1 . . . . . . . 3 . . 1 . Recyclers Shooed 13 | . . . 4 1 . . 8 . . . . . . . . . Parts Field Recycled . | . . . . . . . . . . . . . . . . . Retrieved Matter . | . . . . . . . . . . . . . . . . . Parts Self-Destructed . | . . . . . . . . . . . . . . . . . Prevented . | . . . . . . . . . . . . . . . . . Parts Restored . | . . . . . . . . . . . . . . . . . Kills | -11 -10 -9 -9 -8 -7 -7 -6 -6 -5 -5 -5 -5 -5 -5 -4 -4 ------- Run | Yrd Mat Mat Sto Mat Fac DSF Fac Gar Fac Was Fac Ext Cet Arc Fac Arm Combat Hostiles Destroyed 185 | . 3 4 11 10 . 10 17 43 4 4 . 6 26 4 43 . Guns 99 | . 1 1 1 6 . 5 6 37 1 2 . . 14 1 24 . Cannons 57 | . . 3 10 4 . 5 11 5 2 2 . 5 1 3 6 . AOE 17 | . 2 . . . . . . . . . . . 11 . 4 . Classes Destroyed 21 | . 4 3 3 . . 4 1 3 1 1 . . 1 . . . Worker 16 | . . 1 9 . . . 3 . 1 . . . . . 2 . Builder 13 | . 1 . 2 1 . . 1 . . . . 3 . . 5 . Hauler 11 | . 1 . 5 1 . . . . . . . 3 . . 1 . Recycler 17 | . . . 8 1 . . 4 . 1 . . 3 . . . . Carrier 1 | . . . . . . . . . . . . . 1 . . . Mechanic 1 | . . . 1 . . . . . . . . . . . . . Operator 1 | . . . 1 . . . . . . . . . . . . . Watcher 10 | . 1 2 1 . . . 1 . . . . . 2 . 3 . Swarmer 40 | . 3 . . 4 . 3 . 10 . . . . 12 . 8 . Cutter 1 | . . . . . . . . 1 . . . . . . . . Saboteur 1 | . . . . . . . . 1 . . . . . . . . Grunt 73 | . . 3 7 4 . 3 11 17 . . . 3 6 . 19 . Brawler 2 | . . . . . . . . 2 . . . . . . . . Duelist 2 | . . . . . . 1 . 1 . . . . . . . . Sentry 28 | . . 1 4 2 . . 3 8 1 . . 1 . 4 4 . Specialist 1 | . . . . . . 1 . . . . . . . . . . Hunter 6 | . . . . . . 1 . 3 . . . . . . 2 . Programmer 13 | . . . . . . . 3 . 2 . . . . . 8 . Heavy 2 | . . . . . . 1 . . . . . . . . 1 . Behemoth 4 | . . . . . . . . . 1 . . 2 . . 1 . Compactor 4 | . . . . . . . . . . 4 . . . . . . Cetus Guard 8 | . . . . . . . . . . . . . 8 . . . Best Kill Streak 12 | . 5 4 12 4 . 7 6 7 2 1 . 3 8 2 12 . Combat Bots Only 9 | . 3 3 4 4 . 7 5 7 2 1 . 2 8 2 9 . Max Kills in Single Turn 6 | . 4 1 2 2 . 1 2 2 1 1 . 1 6 1 3 . Gunslinging 1 | . . . . . . . . 1 . . . . 1 . 1 . Exploded 6 | . 2 . . . . . . . . . . . 6 . 3 . Melee . | . . . . . . . . . . . . . . . . . Uniques/NPCs Destroyed . | . . . . . . . . . . . . . . . . . Combat | -11 -10 -9 -9 -8 -7 -7 -6 -6 -5 -5 -5 -5 -5 -5 -4 -4 -------- Run | Yrd Mat Mat Sto Mat Fac DSF Fac Gar Fac Was Fac Ext Cet Arc Fac Arm Hostile Shots Fired 1457 | . 16 7 26 36 . 40 168 398 5 . . 59 117 18 546 21 Missed 406 | . 4 1 9 9 . 12 53 108 2 . . 19 39 7 138 5 Hits 1051 | . 12 6 17 27 . 28 115 290 3 . . 40 78 11 408 16 Melee 5 | . . . . . . . . 5 . . . . . . . . Projectile 1046 | . 12 6 17 27 . 28 115 285 3 . . 40 78 11 408 16 AOE 2 | . . . . . . . . 2 . . . . . . . . Critical Strikes 44 | . . . . 1 . 1 3 6 . . . 1 9 . 23 . Part Disruptions 1 | . . . . . . . . . . . . . . . 1 . Damage Taken 19376 | . 178 74 325 354 . 619 1763 3924 156 . 111 982 1971 301 8291 327 Core 2124 | . 35 12 13 52 . 77 196 473 . . . 32 71 . 1063 100 Absorbed by Shields . | . . . . . . . . . . . . . . . . . Reduced by Siege Mode 127 | . . . . . . . . . . . . . 44 . 83 . Redirected to Shielding 94 | . . . . . . . . . . . 19 75 . . . . Ignored by Resistances 23 | . . . . . . . . 23 . . . . . . . . Regen/Repaired (Parts) 638 | . . . . . . . . . . 193 41 53 351 . . . Core Remaining (%) 81 | 100 86 . 93 90 . 89 . 21 . . . . . 89 . . Volleys Fired 626 | . 15 9 61 29 . 25 48 145 7 29 . 33 55 14 153 3 Largest 6 | . 2 4 4 4 . 5 6 6 6 6 . 6 6 6 6 1 Hottest 502 | . 50 106 106 106 . 129 179 340 502 468 . 417 498 498 478 94 Shots Fired 2357 | . 20 36 242 109 . 124 269 489 38 116 . 147 207 62 495 3 Gun 1619 | . 15 18 120 58 . 74 173 406 11 60 . 64 168 19 430 3 Cannon 724 | . . 18 122 51 . 50 96 81 27 56 . 83 35 43 62 . Launcher 12 | . 5 . . . . . . . . . . . 4 . 3 . Special 2 | . . . . . . . . 2 . . . . . . . . Kinetic 1326 | . 15 36 242 109 . 124 269 307 . . . 58 100 . 66 . Thermal 1003 | . . . . . . . . 182 38 116 . 89 103 62 410 3 Explosive 12 | . 5 . . . . . . . . . . . 4 . 3 . Electromagnetic 16 | . . . . . . . . . . . . . . . 16 . Robot Hit Streak 27 | . 4 13 14 11 . 10 11 27 4 10 . 13 13 16 25 . Robot Miss Streak 9 | . 4 5 3 3 . 6 7 9 2 3 . 5 4 2 5 . Penetration Max 1 | . . . . . . . . 1 . . . 1 1 . 1 . Secondary Targets 13 | . . . . . . . . 5 . . . . 3 . 5 . Max Gunslinging Chain 1 | . . . . . . . . 1 . . . . 1 . 1 . Capacitor 17 | . . . . . . . . . . . . . . . 17 . Shots Hit Robots 1291 | . 9 14 106 60 . 66 130 284 17 62 . 82 106 36 319 . Core Hits 542 | . 7 8 46 19 . 22 63 131 9 13 . 34 58 16 116 . Critical Kills 13 | . . . 1 . . . 1 4 1 . . 1 4 . 1 . Critical Parts Destroyed 10 | . . . . . . . . 5 . . . 2 1 . 2 . Critical Strikes 52 | . . . 3 . . 1 4 11 2 2 . 3 8 . 18 . Burn 20 | . . . . . . . . 1 1 2 . . 1 . 15 . Meltdown 2 | . . . . . . . . . 1 . . . 1 . . . Destroy 23 | . . . 1 . . . 1 9 . . . 3 6 . 3 . Blast 7 | . . . 2 . . 1 3 1 . . . . . . . . Melee Attacks . | . . . . . . . . . . . . . . . . . Impact . | . . . . . . . . . . . . . . . . . Slashing . | . . . . . . . . . . . . . . . . . Piercing . | . . . . . . . . . . . . . . . . . Sneak Attacks . | . . . . . . . . . . . . . . . . . Combat Hostiles . | . . . . . . . . . . . . . . . . . Follow-up Attacks . | . . . . . . . . . . . . . . . . . Damage Inflicted 32456 | . 281 250 1904 997 . 1131 3028 6241 506 1887 . 2659 4009 1109 8451 3 Guns 19005 | . 55 53 626 438 . 549 1342 4730 158 889 . 875 2539 312 6439 . Cannons 11310 | . . 197 1080 559 . 582 1604 1511 348 998 . 1784 244 797 1606 . Explosions 2138 | . 226 . 198 . . . 82 . . . . . 1226 . 406 . Melee . | . . . . . . . . . . . . . . . . . Ramming 3 | . . . . . . . . . . . . . . . . 3 Kinetic 14607 | . 55 250 1706 997 . 1131 2946 3834 . . . 804 1887 . 997 . Thermal 15324 | . . . . . . . . 2407 506 1887 . 1855 896 1109 6664 . Explosive 2138 | . 226 . 198 . . . 82 . . . . . 1226 . 406 . Electromagnetic 384 | . . . . . . . . . . . . . . . 384 . Impact . | . . . . . . . . . . . . . . . . . Slashing . | . . . . . . . . . . . . . . . . . Piercing . | . . . . . . . . . . . . . . . . . Highest Corruption 12 | . . . . . . . 4 10 . . . 10 10 10 12 12 Average Corruption 6 | . . . . . . . 3 5 . . . 4 10 10 5 12 Corruption Purged . | . . . . . . . . . . . . . . . . . Corruption Blocked . | . . . . . . . . . . . . . . . . . Effects 198 | . . . . . . . 6 66 . . . 23 53 8 41 1 Message Errors 51 | . . . . . . . 3 17 . . . 3 14 1 12 1 Matter Fused 49 | . . . . . . . 1 19 . . . 5 12 3 9 . Heat Flow Errors 24 | . . . . . . . . 9 . . . 2 8 . 5 . Energy Discharges 18 | . . . . . . . 1 5 . . . 3 4 1 4 . Parts Rejected 2 | . . . . . . . . . . . . . 2 . . . Parts Fused 3 | . . . . . . . . 1 . . . . 1 . 1 . Data Loss (minor) 18 | . . . . . . . 1 4 . . . 5 5 1 2 . Data Loss (major) 10 | . . . . . . . . 3 . . . 2 4 . 1 . Misfires 5 | . . . . . . . . 3 . . . . . 1 1 . Alerts 4 | . . . . . . . . 2 . . . . 1 1 . . Weapon Failures 14 | . . . . . . . . 3 . . . 3 2 . 6 . Overload Shots . | . . . . . . . . . . . . . . . . . Overflow Damage 355 | . 6 . 4 . . . 92 22 7 . . 48 119 . 57 . Projectiles 179 | . . . 4 . . . 50 22 7 . . 48 . . 48 . Explosions 176 | . 6 . . . . . 42 . . . . . 119 . 9 . Melee . | . . . . . . . . . . . . . . . . . Knockbacks 33 | . . . 9 5 . 4 8 7 . . . . . . . . Impact . | . . . . . . . . . . . . . . . . . Kinetic 30 | . . . 8 5 . 4 8 5 . . . . . . . . Secondary 3 | . . . 1 . . . . 2 . . . . . . . . Self-Inflicted Damage 270 | . 77 . 79 . . . . . . . . . 69 . 45 . Shots 6 | . 2 . 1 . . . . . . . . . 2 . 1 . Rammed 3 | . . . . . . . . . . . . . . . . 3 Targets Rammed 3 | . . . . . . . . . . . . . . . . 3 Kicked . | . . . . . . . . . . . . . . . . . Crushed . | . . . . . . . . . . . . . . . . . Highest Temperature 527 | . 20 148 285 237 . 61 44 438 258 370 . 130 527 315 504 32 Average Temperature 101 | . 10 56 84 84 . 11 10 111 115 106 . 40 154 99 125 24 Received Heat Transfer 3833 | . . 33 87 144 . 63 663 1170 21 . . 153 117 36 1289 57 Effects 26 | . . . 1 . . . . 2 1 1 . . 13 . 8 . Shutdowns 3 | . . . . . . . . . . . . . 1 . 2 . Energy Bleed 7 | . . . 1 . . . . 2 1 . . . 2 . 1 . Interference 10 | . . . . . . . . . . 1 . . 8 . 1 . Matter Decay 1 | . . . . . . . . . . . . . . . 1 . Short Circuit 4 | . . . . . . . . . . . . . 2 . 2 . Damage (minor) 1 | . . . . . . . . . . . . . . . 1 . Siege Activations 3 | . . . . . . . . . . . . . 1 . 2 . Total Turns 51 | . . . . . . . . . . . . . 21 . 30 . Longest Duration 25 | . . . . . . . . . . . . . 21 . 25 . Martial Activations . | . . . . . . . . . . . . . . . . . Shielding Activations 2 | . . . . . . . . . . 2 . . . . . . Total Turns 9 | . . . . . . . . . . 9 . . . . . . Longest Duration 7 | . . . . . . . . . . 7 . . . . . . Robots Disrupted . | . . . . . . . . . . . . . . . . . Combat Hostiles . | . . . . . . . . . . . . . . . . . Robots Corrupted 2 | . . . . . . . . . . . . . . . 2 . Combat Hostiles . | . . . . . . . . . . . . . . . . . Parts Fried 2 | . . . . . . . . . . . . . . . 2 . Impact Corruptions . | . . . . . . . . . . . . . . . . . Robots Melted 13 | . . . . . . . . 1 1 . . 1 1 . 9 . Combat Hostiles 12 | . . . . . . . . 1 1 . . 1 . . 9 . Parts Melted 68 | . . . . . . . . 11 5 1 . . 6 3 42 . Heat Transferred 25089 | . . . . . . . . 4112 703 2738 . 2183 1369 1443 12541 . Parts Sabotaged 8 | . . . . . . . . 8 . . . . . . . . Parts Stolen . | . . . . . . . . . . . . . . . . . Parts Stripped . | . . . . . . . . . . . . . . . . . Power Chain Reactions . | . . . . . . . . . . . . . . . . . Alert | -11 -10 -9 -9 -8 -7 -7 -6 -6 -5 -5 -5 -5 -5 -5 -4 -4 ------- Run | Yrd Mat Mat Sto Mat Fac DSF Fac Gar Fac Was Fac Ext Cet Arc Fac Arm Maximum Alert Level 5 | . . . 1 1 . 1 1 5 3 1 . 4 3 2 2 1 Low Security (%) 38 | 100 100 100 64 64 100 62 42 . . 84 100 23 . . 55 . Level 1 19 | . . . 35 35 . 37 57 12 . 15 . 32 . 23 18 100 Level 2 16 | . . . . . . . . 20 . . . 33 30 76 26 . Level 3 17 | . . . . . . . . 24 100 . . 7 69 . . . Level 4 5 | . . . . . . . . 25 . . . 3 . . . . Level 5 3 | . . . . . . . . 16 . . . . . . . . High Security . | . . . . . . . . . . . . . . . . . Max Security . | . . . . . . . . . . . . . . . . . Sterilizations 1 | . . . . . . 1 . . . . . . . . . . Peak Influence 1855 | . 106 88 272 242 83 230 354 1855 1047 337 . 1493 973 474 608 281 Initial 973 | . . 39 28 98 83 2 120 229 973 337 . . 836 384 144 226 Average 441 | . 46 52 137 149 47 108 227 978 985 72 . 414 743 421 251 247 Influence Increases 8887 | . 133 119 558 314 . 240 584 2156 272 30 . 2109 741 150 1406 75 Destroy 0b10 Robot/C 4500 | . 60 80 220 200 . 200 340 1100 80 . . 740 540 80 860 . Destroy 0b10 Robot/NC 425 | . 15 15 135 15 . 10 45 15 15 . . 95 10 . 55 . Destroy Leader 706 | . 14 24 82 52 . 30 82 40 30 . . 104 60 . 188 . Allied During Kill 1052 | . . . . . . . . 159 28 . . 865 . . . . Successful Hack 66 | . . . 4 . . . 14 21 . . . 9 . . 18 . Disable Machine 480 | . 15 . 60 . . . 90 30 75 . . 60 15 60 75 . Anti-Garrison Action 650 | . . . . . . . . 650 . . . . . . . . Destroy Structure 723 | . 29 . 12 2 . . 13 81 44 30 . 236 116 10 150 . Lose Combat Pursuer 285 | . . . 45 45 . . . 60 . . . . . . 60 75 Influence Decreases 8626 | . 40 144 393 363 181 13 486 629 1164 993 . 616 1273 697 1356 278 Entered New Map 3790 | . . 54 40 135 101 1 110 99 882 626 . . 657 577 270 238 Time Decay 3364 | . 40 90 343 198 80 . 286 . 262 347 . 456 506 110 616 30 Lost Part 1052 | . . . 10 30 . 12 90 350 . . . 20 50 10 470 10 Lost Ally 420 | . . . . . . . . 180 20 20 . 140 60 . . . Squads Dispatched 30 | . . . 2 3 . 2 5 . 2 . 1 3 . . 11 1 Investigation 4 | . . . 1 . . . . . . . 1 1 . . . 1 Extermination 7 | . . . . . . . 1 . 2 . . . . . 4 . Reinforcement 15 | . . . 1 1 . 2 3 . . . . 1 . . 7 . Assault 1 | . . . . . . . . . . . . 1 . . . . Garrison 3 | . . . . 2 . . 1 . . . . . . . . . Intercept . | . . . . . . . . . . . . . . . . . Searches Triggered . | . . . . . . . . . . . . . . . . . Construction Impeded 7 | . . . . 1 . . 2 . . . . 1 . . 3 . Haulers Reinforced 2 | . . . . . . . 1 . . . . . . . 1 . Active Scanning Responses . | . . . . . . . . . . . . . . . . . Cargo Convoy Interrupts . | . . . . . . . . . . . . . . . . . Stealth | -11 -10 -9 -9 -8 -7 -7 -6 -6 -5 -5 -5 -5 -5 -5 -4 -4 --------- Run | Yrd Mat Mat Sto Mat Fac DSF Fac Gar Fac Was Fac Ext Cet Arc Fac Arm Distress Signals 11 | . . . 1 . . . 1 . . . . 1 3 . 5 . Communications Jammed . | . . . . . . . . . . . . . . . . . Distress Signals . | . . . . . . . . . . . . . . . . . Times Spotted 305 | . 4 6 14 12 . 10 18 61 5 8 . 38 27 15 76 11 Peak Tracking Total 16 | . 3 4 5 4 . 4 4 10 2 2 . 7 7 1 16 8 Tactical Retreats 14 | . . . 1 2 . . . 3 . 3 . . . . 3 2 Traps | -11 -10 -9 -9 -8 -7 -7 -6 -6 -5 -5 -5 -5 -5 -5 -4 -4 ------- Run | Yrd Mat Mat Sto Mat Fac DSF Fac Gar Fac Was Fac Ext Cet Arc Fac Arm Traps Triggered 10 | . . . 3 . . 1 . 3 1 . . 1 . . . 1 Indirectly . | . . . . . . . . . . . . . . . . . Trap Hack Attempts . | . . . . . . . . . . . . . . . . . Triggered . | . . . . . . . . . . . . . . . . . Disarmed . | . . . . . . . . . . . . . . . . . Reprogrammed . | . . . . . . . . . . . . . . . . . Reused . | . . . . . . . . . . . . . . . . . Traps Extracted . | . . . . . . . . . . . . . . . . . Installed . | . . . . . . . . . . . . . . . . . Triggered . | . . . . . . . . . . . . . . . . . Machines | -11 -10 -9 -9 -8 -7 -7 -6 -6 -5 -5 -5 -5 -5 -5 -4 -4 ---------- Run | Yrd Mat Mat Sto Mat Fac DSF Fac Gar Fac Was Fac Ext Cet Arc Fac Arm Machines Disabled 38 | . 1 . 4 . . . 6 5 5 . . 6 2 4 5 . Max in Single Turn 3 | . 1 . 1 . . . 3 2 1 . . . 1 1 1 . Garrison Relay 1 | . . . . . . . . 1 . . . . . . . . Phase Generator 1 | . . . . . . . . 1 . . . . . . . . Energy Cycler 2 | . . . . . . . . . . . . 2 . . . . Machines Repaired . | . . . . . . . . . . . . . . . . . Machines Dismantled 1 | . . . . . . . . . . . . . 1 . . . Machines Sabotaged . | . . . . . . . . . . . . . . . . . Overloaded Fab Kills . | . . . . . . . . . . . . . . . . . Hacking | -11 -10 -9 -9 -8 -7 -7 -6 -6 -5 -5 -5 -5 -5 -5 -4 -4 --------- Run | Yrd Mat Mat Sto Mat Fac DSF Fac Gar Fac Was Fac Ext Cet Arc Fac Arm Machines Accessed 16 | . . . 3 . 1 . 1 4 . . 2 3 1 . 1 . Terminals 13 | . . . 3 . 1 . . 4 . . . 3 1 . 1 . Fabricators 2 | . . . . . . . . . . . 2 . . . . . Repair Stations . | . . . . . . . . . . . . . . . . . Recycling Units . | . . . . . . . . . . . . . . . . . Scanalyzers . | . . . . . . . . . . . . . . . . . Garrison Access 1 | . . . . . . . 1 . . . . . . . . . Total Hacks 30 | . . . 6 . 1 . 1 7 . . 4 8 1 . 2 . Successful 12 | . . . 3 . 1 . 1 2 . . . 3 1 . 1 . Failed 18 | . . . 3 . . . . 5 . . 4 5 . . 1 . Catastrophic 5 | . . . . . . . . 2 . . 2 . . . 1 . Database Lockouts . | . . . . . . . . . . . . . . . . . Manual . | . . . . . . . . . . . . . . . . . Terminals 25 | . . . 6 . 1 . . 7 . . . 8 1 . 2 . Fabricators 4 | . . . . . . . . . . . 4 . . . . . Repair Stations . | . . . . . . . . . . . . . . . . . Recycling Units . | . . . . . . . . . . . . . . . . . Scanalyzers . | . . . . . . . . . . . . . . . . . Garrison Access 1 | . . . . . . . 1 . . . . . . . . . Terminal Hacks 11 | . . . 3 . 1 . . 2 . . . 3 1 . 1 . Record 1 | . . . . . . . . . . . . . 1 . . . Part Schematic 1 | . . . . . . . . . . . . . . . 1 . Prototype ID Bank 1 | . . . . . . . . . . . . 1 . . . . Open Door 4 | . . . 3 . . . . 1 . . . . . . . . Open DSF 1 | . . . . . 1 . . . . . . . . . . . Dispatch Records 2 | . . . . . . . . . . . . 2 . . . . Garrison Registry 1 | . . . . . . . . 1 . . . . . . . . Fabricator Hacks . | . . . . . . . . . . . . . . . . . Repair Station Hacks . | . . . . . . . . . . . . . . . . . Recycling Unit Hacks . | . . . . . . . . . . . . . . . . . Scanalyzer . | . . . . . . . . . . . . . . . . . Garrison Access Hacks 1 | . . . . . . . 1 . . . . . . . . . Unlock Access 1 | . . . . . . . 1 . . . . . . . . . Unauthorized Hacks . | . . . . . . . . . . . . . . . . . Terminals . | . . . . . . . . . . . . . . . . . Fabricators . | . . . . . . . . . . . . . . . . . Repair Stations . | . . . . . . . . . . . . . . . . . Recycling Units . | . . . . . . . . . . . . . . . . . Scanalyzers . | . . . . . . . . . . . . . . . . . Garrison Access . | . . . . . . . . . . . . . . . . . Data Cores Recovered 2 | . . . . . . . . . 1 . . 1 . . . . Used . | . . . . . . . . . . . . . . . . . Hacking Detections 11 | . . . 1 . . . 1 4 . . 2 2 . . 1 . Full Trace Events 3 | . . . . . . . . 1 . . 1 1 . . . . Feedback Events . | . . . . . . . . . . . . . . . . . Feedback Blocked . | . . . . . . . . . . . . . . . . . Robot Schematics Acquired . | . . . . . . . . . . . . . . . . . Robots Built . | . . . . . . . . . . . . . . . . . Authchips . | . . . . . . . . . . . . . . . . . Time . | . . . . . . . . . . . . . . . . . Total Robot Build Rating . | . . . . . . . . . . . . . . . . . Part Schematics Acquired 1 | . . . . . . . . . . . . . . . 1 . Parts Built . | . . . . . . . . . . . . . . . . . Authchips . | . . . . . . . . . . . . . . . . . Time . | . . . . . . . . . . . . . . . . . Total Part Build Rating . | . . . . . . . . . . . . . . . . . Part Studies Acquired . | . . . . . . . . . . . . . . . . . Parts Repaired . | . . . . . . . . . . . . . . . . . Time . | . . . . . . . . . . . . . . . . . Parts Recycled . | . . . . . . . . . . . . . . . . . Recycled Matter . | . . . . . . . . . . . . . . . . . Retrieved Matter . | . . . . . . . . . . . . . . . . . Retrieved Components . | . . . . . . . . . . . . . . . . . Parts Scanalyzed . | . . . . . . . . . . . . . . . . . Part Schematics Acquired . | . . . . . . . . . . . . . . . . . Parts Damaged . | . . . . . . . . . . . . . . . . . Bothacking | -11 -10 -9 -9 -8 -7 -7 -6 -6 -5 -5 -5 -5 -5 -5 -4 -4 ------------ Run | Yrd Mat Mat Sto Mat Fac DSF Fac Gar Fac Was Fac Ext Cet Arc Fac Arm Used RIF Installer . | . . . . . . . . . . . . . . . . . Robots Hacked . | . . . . . . . . . . . . . . . . . Non-combat . | . . . . . . . . . . . . . . . . . Combat . | . . . . . . . . . . . . . . . . . Robot Hacks Applied . | . . . . . . . . . . . . . . . . . Relay Couplers Released 4 | . . . . . . . . 4 . . . . . . . . Machine Destruction 4 | . . . . . . . . 4 . . . . . . . . Fabnet Peak Effective % . | . . . . . . . . . . . . . . . . . Robots Rewired 12 | . . . . . . . . 12 . . . . . . . . Allies Hacked . | . . . . . . . . . . . . . . . . . Hacks Repelled . | . . . . . . . . . . . . . . . . . Allies | -11 -10 -9 -9 -8 -7 -7 -6 -6 -5 -5 -5 -5 -5 -5 -4 -4 -------- Run | Yrd Mat Mat Sto Mat Fac DSF Fac Gar Fac Was Fac Ext Cet Arc Fac Arm Total Allies 33 | . . . . . . . . 12 . 19 . 2 . . . . Largest Group 20 | . . . . . . . . 5 3 20 20 17 3 . . . Highest-Rated Group 723 | . . . . . . . . 224 123 723 723 648 125 . . . Highest-Rated Ally 50 | . . . . . . . . 46 41 50 50 50 50 . . . Initial Warlord ECA Mod 14 | . . . . . . . 9 9 14 14 14 14 14 14 13 13 Total Orders 5 | . . . . . . . . 2 . 3 . . . . . . STAY 3 | . . . . . . . . 1 . 2 . . . . . . FOLLOW 1 | . . . . . . . . . . 1 . . . . . . AID 1 | . . . . . . . . 1 . . . . . . . . Ally Attacks 271 | . . . . . . . . 58 10 28 . 171 4 . . . Total Damage 9993 | . . . . . . . . 1628 697 1119 . 6409 140 . . . Kills 64 | . . . . . . . . 12 1 2 . 49 . . . . Allies Corrupted 2 | . . . . . . . . 2 . . . . . . . . Allies Melted . | . . . . . . . . . . . . . . . . . Intel | -11 -10 -9 -9 -8 -7 -7 -6 -6 -5 -5 -5 -5 -5 -5 -4 -4 ------- Run | Yrd Mat Mat Sto Mat Fac DSF Fac Gar Fac Was Fac Ext Cet Arc Fac Arm Active Infowar (turns) . | . . . . . . . . . . . . . . . . . Robot Analysis Total . | . . . . . . . . . . . . . . . . . Derelict Logs Recovered . | . . . . . . . . . . . . . . . . . Drone Launches . | . . . . . . . . . . . . . . . . . Drone Recoveries . | . . . . . . . . . . . . . . . . . Exploration | -11 -10 -9 -9 -8 -7 -7 -6 -6 -5 -5 -5 -5 -5 -5 -4 -4 ------------- Run | Yrd Mat Mat Sto Mat Fac DSF Fac Gar Fac Was Fac Ext Cet Arc Fac Arm Turns Passed 13033 | 55 158 180 926 402 161 429 626 2504 562 1670 249 1374 1376 238 2045 78 Spaces Moved 5574 | 37 70 90 425 168 99 195 253 1093 314 667 109 581 439 70 845 119 Core 140 | 10 . . . . . . . 7 . . . . . . 5 118 Treads 2860 | 27 70 90 425 168 99 195 253 218 . . . . 404 70 840 1 Legs 2574 | . . . . . . . . 868 314 667 109 581 35 . . . Wheels . | . . . . . . . . . . . . . . . . . Hover . | . . . . . . . . . . . . . . . . . Flight . | . . . . . . . . . . . . . . . . . Fastest Speed 50 | 50 160 160 160 160 160 160 160 110 120 120 130 130 160 240 50 50 Average Speed 172 | 130 160 160 160 168 160 164 162 148 165 192 194 196 236 240 164 51 Slowest Speed 450 | 160 160 160 160 240 160 320 240 450 190 200 200 400 270 240 180 180 Overloaded Moves . | . . . . . . . . . . . . . . . . . Propulsion Burnouts . | . . . . . . . . . . . . . . . . . Robots Hopped . | . . . . . . . . . . . . . . . . . Potential Cave-ins . | . . . . . . . . . . . . . . . . . Cave-ins Triggered . | . . . . . . . . . . . . . . . . . Exploration Rate (%) 37 | 3 14 14 52 18 4 91 8 83 10 93 5 62 73 76 18 11 Regions Visited 16 Branch Regions 5 Pre-discovered Areas 1 | . . . 1 . . . . . . . . . . . . . Known Exits Taken 2 | . . . . . 1 . 1 . . . . . . . . . Unknown Exits Taken 10 | 1 1 1 1 1 . . . . . . 1 1 1 1 1 . Scrap Searched . | . . . . . . . . . . . . . . . . . Spaces Dug 19 | . . . . . . . . . . 10 . . 6 . 3 . Terrain Destroyed 367 | . 36 . 5 . . . 12 76 6 19 . 24 102 5 82 . Melee . | . . . . . . . . . . . . . . . . . Projectile 145 | . . . . . . . 7 5 6 19 . 24 36 5 43 . AOE 221 | . 36 . 5 . . . 5 70 . . . . 66 . 39 . Terrain Rammed . | . . . . . . . . . . . . . . . . . Walls Destroyed . | . . . . . . . . . . . . . . . . . Machines Disabled . | . . . . . . . . . . . . . . . . . Actions | -11 -10 -9 -9 -8 -7 -7 -6 -6 -5 -5 -5 -5 -5 -5 -4 -4 --------- Run | Yrd Mat Mat Sto Mat Fac DSF Fac Gar Fac Was Fac Ext Cet Arc Fac Arm Total 7594 | 44 98 103 519 215 101 234 326 1653 340 999 146 728 646 110 1200 132 Wait 745 | . . . 7 7 . . 2 166 4 252 37 77 85 19 87 2 Move 5559 | 36 69 89 424 167 98 194 253 1091 314 666 108 580 438 69 844 119 Hop . | . . . . . . . . . . . . . . . . . Pick Up 138 | 4 11 1 8 4 . 6 8 43 6 3 . 8 4 . 32 . Fast Attach 64 | . 2 . 8 . . 2 1 6 1 7 . 6 12 2 17 . Attach 130 | 4 1 2 1 5 1 2 9 48 4 4 . 3 5 . 38 3 Detach 31 | . . . . . . . . 5 1 9 . . 4 2 8 2 Swap 70 | . . 2 1 3 2 1 5 10 1 11 1 10 16 1 6 . Drop 82 | . . . 9 . . 2 . 7 2 18 . 11 15 3 15 . Fire 626 | . 15 9 61 29 . 25 48 145 7 29 . 33 55 14 153 3 Melee . | . . . . . . . . . . . . . . . . . Ram . | . . . . . . . . . . . . . . . . . Kick . | . . . . . . . . . . . . . . . . . Crush 3 | . . . . . . . . . . . . . . . . 3 Escape Stasis 4 | . . . . . . 2 . 2 . . . . . . . . Rewire 130 | . . . . . . . . 130 . . . . . . . . Trap . | . . . . . . . . . . . . . . . . . Miscellaneous 12 | . . . . . . . . . . . . . 12 . . . Route ------- -11/Scrapyard -10/Materials -9/Materials -9/Storage -8/Materials -7/Factory -7/DSF -6/Factory (discovered 2 exits: [*Low] / Gar) -6/Garrison (discovered 3 exits: [*Fac x3]) -5/Factory -5/Waste -5/Factory -5/Extension (discovered 3 exits: *Fac x2 / *Cet) -5/Cetus (discovered 2 exits: *Fac / [*Arc]) -5/Archives (discovered 2 exits: *Fac / [*Hub]) -4/Factory -4/Armory History --------- Turn | Location | Event 4 | -11/Scrapyard | Discovered new exit (range 16) 56 | -11/Scrapyard | Entered Materials 174 | -10/Materials | Discovered new exit (range 7) 214 | -10/Materials | Entered another Materials area 214 | -9/Materials | Evolved 2 slots: Weapon x2 370 | -9/Materials | Discovered new exit (range 9) 394 | -9/Materials | Entered Storage 503 | -9/Storage | Build established: Tank 726 | -9/Storage | Learned location of Armory (-4) 1150 | -9/Storage | Discovered new exit (range 16) 1320 | -9/Storage | Entered Materials 1320 | -8/Materials | Evolved 2 slots: Power x1, Propulsion x1 1563 | -8/Materials | Garrison activated, responded to threat 1644 | -8/Materials | Discovered new exit (range 16) 1722 | -8/Materials | Entered Factory 1722 | -7/Factory | Evolved 2 slots: Utility x1, Weapon x1 1883 | -7/Factory | Identified exit to DSF 1883 | -7/Factory | Entered DSF 1884 | -7/DSF | Joined Warlord attack on 0b10 via DSF 1916 | -7/DSF | Additional patrols routed to DSF 1974 | -7/DSF | Lost 12 allies 2074 | -7/DSF | Discovered new exit (range 14) 2174 | -7/DSF | Destroyed 7 combat bots 2204 | -7/DSF | Sterilization system engaged 2224 | -7/DSF | Ambient heat levels rising (+10) 2239 | -7/DSF | Ambient heat levels rising (+10) 2254 | -7/DSF | Ambient heat levels rising (+10) 2269 | -7/DSF | Ambient heat levels rising (+10) 2284 | -7/DSF | Ambient heat levels rising (+10) 2299 | -7/DSF | Ambient heat levels rising (+10) 2312 | -7/DSF | Entered Factory 2312 | -6/Factory | Evolved 2 slots: Utility x1, Weapon x1 2316 | -6/Factory | Discovered new exit (range 13) 2634 | -6/Factory | Build established: Scavenger-Executioner 2798 | -6/Factory | Lost 7 parts (1p2n4w) 2810 | -6/Factory | Garrison activated, responded to threat 2938 | -6/Factory | Identified exit to Garrison 2938 | -6/Factory | Entered Garrison 2978 | -6/Garrison | Triggered checkpoint 3069 | -6/Garrison | Lost 9 parts (1p1n2u5w) 3314 | -6/Garrison | Destroyed 7 combat bots 3323 | -6/Garrison | Lost 3 parts (2n1u) 3334 | -6/Garrison | Core integrity fell below 50% 3528 | -6/Garrison | Triggered checkpoint 3571 | -6/Garrison | Lost 3 parts (1p1u1w) 3625 | -6/Garrison | Garrison Relay disabled 3760 | -6/Garrison | Discovered new exit (range 10) 3786 | -6/Garrison | Triggered checkpoint 3905 | -6/Garrison | Lost 8 parts (2p1n2u3w) 3942 | -6/Garrison | Triggered checkpoint 4140 | -6/Garrison | Triggered checkpoint 4160 | -6/Garrison | Triggered checkpoint 4232 | -6/Garrison | Triggered checkpoint 4284 | -6/Garrison | Discovered new exit (range 15) 4302 | -6/Garrison | Discovered new exit (range 65) 4302 | -6/Garrison | Discovered new exit (range 7) 4302 | -6/Garrison | Discovered new exit (range 41) 4368 | -6/Garrison | Triggered checkpoint 4480 | -6/Garrison | Phase Generator disabled 4636 | -6/Garrison | Lost 6 parts (1p2n3w) 4685 | -6/Garrison | Lost 4 allies 4754 | -6/Garrison | System corruption reached 10% 5442 | -6/Garrison | Entered Factory 5442 | -5/Factory | Accompanied by 3 allies 5442 | -5/Factory | Evolved 2 slots: Utility x2 5474 | -5/Factory | Build established: Scavenger-Gunner 5657 | -5/Factory | Spotted B-75 Beast 5663 | -5/Factory | Destroyed B-75 Beast 5870 | -5/Factory | Build established: Scavenger-Executioner 6004 | -5/Factory | Sucked down chute 6004 | -5/Factory | Entered Waste 6049 | -5/Waste | 2 allies followed down the chute 6107 | -5/Waste | Spotted C-40 Crusher 6123 | -5/Waste | Allies destroyed C-40 Crusher 6180 | -5/Waste | Spotted C-40 Crusher 6192 | -5/Waste | Spotted C-40 Crusher 6200 | -5/Waste | Allies destroyed C-40 Crusher 6223 | -5/Waste | Spotted C-40 Crusher 6237 | -5/Waste | Destroyed C-40 Crusher 6246 | -5/Waste | Spotted C-40 Crusher 6285 | -5/Waste | Destroyed C-40 Crusher 6377 | -5/Waste | Spotted C-40 Crusher 6382 | -5/Waste | Destroyed C-40 Crusher 6475 | -5/Waste | Destroyed C-40 Crusher 6554 | -5/Waste | Warlord forces began an assault 6804 | -5/Waste | Build established: Scavenger-Tank 7162 | -5/Waste | Discovered new exit (range 13) 7242 | -5/Waste | Build established: Scavenger-Executioner 7579 | -5/Waste | Build established: Scavenger-Tank 7674 | -5/Waste | Entered Factory 7674 | -5/Factory | Accompanied by 20 allies 7854 | -5/Factory | Lost 3 allies 7860 | -5/Factory | Discovered new exit (range 13) 7923 | -5/Factory | Entered Extension 7923 | -5/Extension | Accompanied by 17 allies 8350 | -5/Extension | Energy Cycler disabled 8351 | -5/Extension | Rescued a captive Derelict 8351 | -5/Extension | Rescued a captive Derelict 8381 | -5/Extension | Lost 6 allies 8785 | -5/Extension | Spotted B-75 Beast 8794 | -5/Extension | Destroyed B-75 Beast 8807 | -5/Extension | Spotted B-75 Beast 8825 | -5/Extension | Destroyed B-75 Beast 8840 | -5/Extension | Discovered new exit (range 14) 8869 | -5/Extension | Extracted ID and sensor layout for unrecognized location from A7's data core 8875 | -5/Extension | Found Corrupted Prototype Protection 8875 | -5/Extension | Identified Med. Regenerative Plating 8876 | -5/Extension | System corruption reached 10% 9123 | -5/Extension | First assault squad dispatched 9201 | -5/Extension | Discovered new exit (range 15) 9203 | -5/Extension | Discovered new exit (range 15) 9248 | -5/Extension | Disrupted transfer network 9252 | -5/Extension | Disrupted transfer network 9262 | -5/Extension | Build established: Scavenger-Executioner 9297 | -5/Extension | Entered Cetus 9297 | -5/Cetus | Accompanied by 3 allies 9321 | -5/Cetus | Spotted Cetus Guard 9322 | -5/Cetus | Spotted Cetus Guard 9340 | -5/Cetus | Destroyed Cetus Guard 9343 | -5/Cetus | Spotted Cetus Guard 9344 | -5/Cetus | Destroyed Cetus Guard 9344 | -5/Cetus | Destroyed Cetus Guard 9353 | -5/Cetus | Spotted Cetus Guard 9358 | -5/Cetus | Lost 10 allies 9360 | -5/Cetus | Destroyed Cetus Guard 9684 | -5/Cetus | Discovered new exit (range 15) 9739 | -5/Cetus | Spotted Cetus Guard 9739 | -5/Cetus | Spotted Cetus Guard 9743 | -5/Cetus | Spotted Cetus Guard 9752 | -5/Cetus | Destroyed Cetus Guard 9752 | -5/Cetus | Destroyed Cetus Guard 9753 | -5/Cetus | Spotted Cetus Guard 9769 | -5/Cetus | Destroyed Cetus Guard 9799 | -5/Cetus | Destroyed Cetus Guard 9814 | -5/Cetus | Discovered new exit (range 16) 9832 | -5/Cetus | Met Revision 17 10047 | -5/Cetus | Security sweep announced 10078 | -5/Cetus | Destroyed 7 combat bots 10354 | -5/Cetus | Found a strange terminal 10619 | -5/Cetus | Destroyed 8 combat bots 10673 | -5/Cetus | Entered Archives 10823 | -5/Archives | Discovered new exit (range 16) 10863 | -5/Archives | Discovered new exit (range 16) 10911 | -5/Archives | Entered Factory 10911 | -4/Factory | Evolved 2 slots: Propulsion x1, Utility x1 11231 | -4/Factory | Found Quantum Capacitor 11960 | -4/Factory | Spotted B-86 Titan 11981 | -4/Factory | Destroyed B-86 Titan 12019 | -4/Factory | Lost 6 parts (1p2u3w) 12274 | -4/Factory | Lost 7 parts (1p1n1u4w) 12282 | -4/Factory | Destroyed 9 combat bots 12385 | -4/Factory | Lost 4 parts (3u1w) 12448 | -4/Factory | Core integrity fell below 50% 12492 | -4/Factory | Lost 6 parts (1n1u4w) 12814 | -4/Factory | Discovered new exit (range 15) 12944 | -4/Factory | System corruption reached 10% 12954 | -4/Factory | Core integrity fell below 20% 12956 | -4/Factory | Entered Armory 12983 | -4/Armory | Lost 14 parts (2p3n4u5w) 13034 | -4/Armory | Destroyed by G-73 Enforcer with Phase Gun Last Messages --------------- Penetrated by Slug. U-05 Engineer destroyed. K-01 Serf collects debris. R-10 Processor collects Med. Matter Pod. LOCATION=UNKNOWN GOAL=ESCAPE Triggered Alarm Trap. An alarm sounds. ALERT: Alarm triggered, dispatching investigation squad. ,&X6ZIS Adv. Heat Sink destroyed. Slammed into G-73 Enforcer. Slammed into G-67 Veteran. C-30 ARC bursts open, deploying its payload. P-70 Sage unfolds itself. Slammed into G-67 Veteran. Map ----- +----------------------------------------------------+ | ?????????????????????????????????????????????????? | | ?????????????????????????????????????????????????? | | ?????????????????????????????????????????????????? | | ?????????????????????????????????????????????????? | | ?????????????????????????????????????????????????? | | ?????????????????????????????????????????????????? | | ?????????????????????????????????????????????????? | | ?????????????????????????????????????????????????? | | ??????????????????????????#????????##########????? | | ??????????????????????????# ???????# #????? | | ??????????????????????????# ???????# #????? | | ??????????????????????????# ????" # """"" #????? | | ??????????????????????????# ????" + "???" #????? | | ??????????????????????????# """"" # "???" #????? | | ??????????????????????????# # """"" #????? | | ??????????????????????????# + #????? | | ??????????????????????????# " # #????? | | ??????????????????????????# "%"?# #????? | | ????????#########+#############/######+######????? | | ??????? #??????? | | ??????? % ######## | | ??????? | | ??????? ^ ######## | | ??????? pp #??????? | | ????????##+#############g#############+####??????? | | ???????????????????????#g@ #?????????????????? | | ???????????????????????#]g """#?????????????????? | | ???????????????????????# """#?????????????????? | | ???????????????????????# """#?????????????????? | | ???????????????????????# """#?????????????????? | | ???????????????????????# """#?????????????????? | | ???????????????????????# """#?????????????????? | | ???????????????????????# ! """#?????????????????? | | ???????????????????????# #?????????????????? | | ???????????????????????# #?????????????????? | | ???????????????????????# #?????????????##+?? | | ???????????????????????#########????????????? # | | ????????????????????????????????????????????? | | ????????????????????????????????????????????? | | ????????????????????????????????????????????? # | | ?????????????????????????????????????????????# ?# | | ?????????????????????????????????????????????# ## | | ?????????????????????????????????????????????# ## | | ?????????????????????????????????????????????# ## | | ?????????????????????????????????????????????# ## | | ?????????????????????????????????????????????+ ## | | ?????????????????????????????????????????????# ## | | ?????????????????????????????????????????????# ## | | ?????????????????????????????????????????????# ## | | ?????????????????????????????????????????????# + | +----------------------------------------------------+ Best States ------------- Heat Dissipation 151 Coolant Potential 65 Energy Generation 45 Energy Capacity 600 Matter Stores 700 Matter Capacity 700 Sight Range 16 Terrain Scan Density 10 Armor Coverage 900 Resistance: KI 30 Propulsion Shielding 66 Weapon Cycling 30 Evasion (%) 60 Targeting Accuracy 8 Recoil Reduction 4 Energy Filtering 30 Item Schematics ----------------- Railgun | -4/Factory | Hacked Robot Schematics ------------------ None Fabricated ------------ Nothing Repaired ---------- Nothing Studied --------- None Alien Tech Used ----------------- None Achievements -------------- None Challenges ------------ None Game ------ Seed SurgeAuthchipForcegen Manual? 0 Play Time 01:21:10 Cumulative 349.1 hours Start 2026.06.24 @ 15:13:13 End 2026.06.24 @ 16:35:07 Sessions 1 Manual Loads 0 Difficulty Rogue Special Mode None Game No. 867 Rogue 865 Adventurer 2 Explorer 0 Win Type - Total 1 Types 1/0/0/0/0/0/0/0/0/0 Lore% 49 Gallery% 66 Achievement% 52 Wizard Run 0 Options --------- Layout 2 ASCII 0 Keyboard 0 Movement Mouse Keybinds 0 Fullscreen 1 Font 24/Smallcaps Map View 50x44 Zoom Use 0% Tactical HUD 0 Map Filters NONE Filters NONE Steam 1 RUN: ee405f95-8690-4c61-9324-796b782c67aa